bitfinex-derivatives/quotes_ETHF0:USTF0_20250115
["timestamp","ask_amount","ask_price","bid_price","bid_amount"]
[1736972450025,0.57638,3468.7,3468.6,3.2078]
[1736972450226,2.71428763,3469.0,3468.6,3.2078]
[1736972450534,0.57638,3468.7,3468.6,3.2078]
[1736972450825,3.2078,3469.1,3468.6,3.2078]
[1736972451027,0.57635,3468.9,3468.7,0.57637]
[1736972451323,3.2078,3469.1,3468.7,0.57638]
[1736972451524,3.2078,3469.1,3468.6,3.2078]
[1736972451726,3.78412,3469.1,3468.9,0.57634]
[1736972451920,0.57632,3469.1,3468.9,0.57634]
[1736972452121,3.71108763,3469.6,3468.6,3.2078]
[1736972452319,0.9968,3469.6,3468.6,3.2078]
[1736972452522,0.57633,3469.0,3468.8,0.57635]
[1736972452723,1.44062,3469.5,3468.6,3.2078]
[1736972453222,0.57635,3468.9,3468.7,0.57637]
[1736972453524,0.57635,3468.9,3468.6,3.2078]
[1736972453525,0.57638,3468.8,3468.6,3.78419]
[1736972453830,1.44071,3469.3,3468.7,0.57637]
[1736972454024,0.57636,3468.8,3468.7,0.57637]
[1736972454221,1.44071,3469.3,3468.6,3.2078]
[1736972454518,0.57638,3468.7,3468.6,3.2078]
[1736972455032,0.57633,3469.0,3468.9,0.57634]
[1736972455223,0.9881,3469.2,3468.6,3.2078]
[1736972455423,0.57637,3468.8,3468.6,3.78419]
[1736972455726,0.57635,3468.9,3468.7,0.57638]
[1736972456124,0.57634,3469.0,3468.8,0.57636]
[1736972456328,0.57633,3469.0,3468.8,0.57636]
[1736972456528,0.57635,3468.9,3468.7,0.57637]
[1736972456731,3.2078,3469.1,3468.6,3.2078]
[1736972456934,3.2078,3469.1,3468.8,0.57635]
[1736972457124,0.57631,3469.1,3468.8,0.57635]
[1736972457323,0.57638,3468.7,3468.6,3.2078]
[1736972458229,0.57638,3468.7,3468.6,3.78419]
[1736972458730,0.57638,3468.7,3468.6,3.2078]
[1736972459328,0.57638,3468.7,3467.4,1.44145]
[1736972459329,0.57643,3468.4,3468.3,3.2078]
[1736972459520,3.2078,3468.5,3467.7,3.2078]
[1736972459725,0.57647,3468.2,3468.1,0.57647]
[1736972459924,0.57647,3468.2,3467.7,3.2078]
[1736972460226,3.78422,3468.5,3467.7,3.2078]
[1736972460422,5.1571,3468.6,3467.7,3.2078]
[1736972460627,5.1571,3468.6,3468.2,0.57645]
[1736972460930,1.9493,3468.6,3467.8,3.2078]
[1736972461130,3.2078,3469.2,3467.8,3.2078]
[1736972461131,2.71428763,3469.5,3468.5,0.57641]
[1736972461326,0.27380661,3471.0,3469.6,0.57622]
[1736972461327,0.57622,3469.7,3469.6,0.57622]
[1736972461530,0.57619,3469.8,3469.2,3.2078]
[1736972461729,0.9387,3469.9,3469.2,3.2078]
[1736972462130,0.9387,3469.9,3468.3,4.97758763]
[1736972462131,2.71428763,3469.6,3468.7,3.2078]
[1736972462333,0.57633,3469.0,3468.9,0.57634]
[1736972463230,2.71428763,3469.2,3468.9,0.57634]
[1736972463431,0.57633,3469.1,3468.8,0.57636]
[1736972463632,0.57633,3469.1,3468.9,0.57633]
[1736972463834,0.57636,3468.8,3468.2,0.57645]
[1736972464027,1.49943,3469.0,3468.8,0.57635]
[1736972464532,2.71428763,3469.7,3469.1,0.5763]
[1736972464738,0.57629,3469.2,3469.1,0.5763]
[1736972464931,0.57639,3468.7,3468.6,0.57638]
[1736972465132,0.57639,3468.6,3468.5,3.2078]
[1736972465333,2.71428763,3468.9,3468.5,3.2078]
[1736972465533,0.5764,3468.6,3468.5,0.5764]
[1736972465744,0.5764,3468.6,3468.4,0.57642]
[1736972466440,0.57641,3468.5,3468.1,3.2078]
[1736972466643,0.57641,3468.6,3468.4,0.57642]
[1736972466934,2.71428763,3469.3,3468.5,3.2078]
[1736972467138,0.5763,3469.2,3469.0,0.57632]
[1736972467442,3.2078,3469.5,3468.7,1.44095]
[1736972467632,2.48324,3469.6,3469.0,2.01716]
[1736972467835,0.57624,3469.5,3469.0,0.57632]
[1736972468039,1.907,3469.6,3468.9,3.2078]
[1736972468242,0.9664,3469.6,3469.3,3.2078]
[1736972468543,0.57626,3469.4,3469.3,3.2078]
[1736972468941,0.57639,3468.7,3468.5,3.2078]
[1736972469152,3.78409,3469.2,3468.8,0.57635]
[1736972469443,1.54264,3469.6,3469.4,0.57625]
[1736972469644,1.54264,3469.6,3468.9,4.64865]
[1736972469645,0.9664,3469.6,3468.9,4.64865]
[1736972469946,0.57626,3469.5,3469.3,0.57627]
[1736972470244,1.54263,3469.6,3469.5,0.57624]
[1736972470453,3.2078,3469.9,3469.0,0.9701]
[1736972470645,1.44026,3470.4,3470.1,0.57615]
[1736972470646,1.55853,3470.2,3470.1,0.57615]
[1736972470846,0.9411,3470.5,3469.8,3.2078]
[1736972471055,0.5761,3470.4,3470.3,0.5761]
[1736972471453,0.57612,3470.3,3470.1,0.57614]
[1736972471645,0.57612,3470.3,3469.9,0.9701]
[1736972471646,0.9411,3470.5,3469.9,0.9701]
[1736972472045,1.51719,3470.5,3470.3,0.57611]
[1736972472246,1.51719,3470.5,3470.2,3.2078]
[1736972472247,0.9411,3470.5,3470.4,0.5761]
[1736972472642,0.9824,3470.9,3470.7,0.57604]
[1736972472643,1.55842,3470.9,3470.7,0.57604]
[1736972472952,0.57603,3470.8,3470.6,0.57605]
[1736972473261,1.55842,3470.9,3470.7,0.57605]
[1736972473446,0.9609,3471.2,3470.6,3.2078]
[1736972473643,0.9609,3471.2,3471.0,3.2078]
[1736972474045,2.71428763,3472.3,3471.0,3.2078]
[1736972474246,2.63759107,3474.0,3470.5,2.71428763]
[1736972474247,0.57577,3472.4,3472.0,0.57582]
[1736972474446,0.57579,3472.3,3471.8,3.2078]
[1736972474649,0.57579,3472.3,3471.9,0.57584]
[1736972475060,4.66458763,3472.7,3471.9,0.57584]
[1736972475061,0.5758,3472.2,3471.9,0.57584]
[1736972475250,0.57582,3472.1,3471.8,3.2078]
[1736972475452,3.2078,3472.5,3471.8,3.2078]
[1736972475654,0.57586,3471.9,3471.5,0.5759]
[1736972475854,0.57586,3471.8,3471.5,0.5759]
[1736972476250,2.71428763,3472.3,3471.4,3.2078]
[1736972476463,0.57584,3472.0,3471.4,3.2078]
[1736972476758,0.57583,3472.0,3471.7,0.57587]
[1736972476952,0.57582,3472.1,3471.7,0.57587]
[1736972477254,2.71428763,3472.3,3471.7,0.57587]
[1736972477459,2.71428763,3472.3,3471.6,0.57588]
[1736972477460,0.57585,3471.9,3471.6,0.57588]
[1736972477851,2.71428763,3472.3,3471.4,3.2078]
[1736972478154,0.57586,3471.9,3471.5,0.5759]
[1736972478360,0.5758,3472.2,3471.5,0.57591]
[1736972478561,0.57586,3471.9,3471.5,0.57591]
[1736972478951,2.71428763,3472.3,3471.4,3.2078]
[1736972479548,0.57591,3471.6,3471.4,3.2078]
[1736972479853,0.57585,3471.9,3471.6,0.57589]
[1736972480053,0.57585,3471.9,3471.4,3.2078]
[1736972480359,0.57587,3471.8,3471.5,0.57591]
[1736972480553,2.0153,3472.2,3471.4,3.2078]
[1736972480756,2.71428763,3472.3,3471.4,3.2078]
[1736972480954,4.15375763,3472.3,3471.4,3.2078]
[1736972481153,0.57588,3471.7,3471.4,3.78371]
[1736972481356,2.71428763,3472.3,3471.4,3.2078]
[1736972481655,1.4395,3472.2,3471.4,3.2078]
[1736972481857,0.57591,3471.5,3471.4,3.2078]
[1736972482051,1.4395,3472.2,3471.4,3.2078]
[1736972482556,1.53662,3472.7,3471.9,0.57585]
[1736972482759,6.85898763,3473.5,3472.3,3.2078]
[1736972483056,3.2078,3473.9,3473.1,3.78344]
[1736972483251,1.43874,3474.1,3473.6,3.2078]
[1736972483252,0.57548,3474.1,3473.6,3.2078]
[1736972483457,0.57551,3474.0,3473.6,3.2078]
[1736972483652,1.53837,3474.2,3473.7,0.57554]
[1736972483858,1.53837,3474.2,3473.6,3.2078]
[1736972483859,0.9629,3474.2,3473.6,3.2078]
[1736972484055,0.9629,3474.2,3473.6,3.78336]
[1736972484358,3.2078,3474.3,3473.6,3.78336]
[1736972484359,3.2078,3474.3,3473.6,3.2078]
[1736972484959,3.2078,3474.3,3473.7,0.57555]
[1736972485160,3.2078,3474.3,3473.6,3.2078]
[1736972485556,0.57536,3474.9,3474.0,3.2078]
[1736972485758,3.78311,3475.2,3474.5,0.57542]
[1736972485962,3.2078,3475.2,3474.4,3.2078]
[1736972486359,3.2078,3475.6,3474.8,3.2078]
[1736972486663,0.57533,3475.1,3474.8,3.2078]
[1736972486961,3.2078,3475.5,3474.8,3.2078]
[1736972487153,0.57535,3474.9,3474.8,3.2078]
[1736972487559,4.64595,3475.5,3474.4,0.57543]
[1736972487560,2.71428763,3475.0,3474.4,3.2078]
[1736972487751,2.71428763,3475.0,3474.1,0.9117]
[1736972487752,3.2078,3474.7,3474.1,0.9117]
[1736972487957,0.57542,3474.5,3474.1,1.48717]
[1736972488161,3.2078,3474.8,3474.1,0.9117]
[1736972488367,0.57545,3474.4,3474.1,0.9117]
[1736972488559,3.2078,3474.4,3473.6,3.2078]
[1736972488754,0.57555,3473.7,3473.6,3.2078]
[1736972488957,2.71428763,3474.1,3473.6,3.2078]
[1736972489160,3.2078,3474.4,3473.6,3.2078]
[1736972489362,3.2078,3474.4,3473.7,0.57554]
[1736972489363,0.5755,3474.1,3473.7,0.57554]
[1736972489660,0.57551,3474.0,3473.6,3.78336]
[1736972489861,3.2078,3474.4,3473.6,3.2078]
[1736972490068,0.9419,3474.5,3474.1,0.57547]
[1736972490269,2.71428763,3474.9,3473.6,3.2078]
[1736972490763,0.57537,3474.8,3474.3,0.57544]
[1736972491061,0.9824,3475.2,3474.4,3.78323]
[1736972491363,0.9824,3475.2,3474.4,3.2078]
[1736972491562,0.57539,3474.7,3474.4,3.2078]
[1736972492069,3.69078763,3475.3,3474.4,3.2078]
[1736972492267,0.57534,3475.0,3474.4,3.2078]
[1736972492463,3.69078763,3475.3,3474.4,3.2078]
[1736972492665,0.5753,3475.2,3474.6,0.57539]
[1736972492866,0.57532,3475.1,3474.5,0.57542]
[1736972493065,0.57534,3475.0,3474.7,0.57538]
[1736972493360,0.9765,3475.3,3474.5,0.9776]
[1736972493557,3.2078,3475.5,3474.5,0.9776]
[1736972493760,0.57535,3474.9,3474.6,0.57539]
[1736972493960,0.57537,3474.9,3474.6,0.5754]
[1736972494161,2.71428763,3475.3,3474.5,0.9776]
[1736972494362,3.2078,3475.5,3475.0,3.2078]
[1736972494769,0.57527,3475.4,3475.1,0.57532]
[1736972494964,3.2078,3475.5,3475.0,3.2078]
[1736972495160,3.2078,3475.5,3474.7,0.57537]
[1736972495367,0.57533,3475.1,3474.5,4.1854]
[1736972495662,3.78307,3475.5,3474.9,3.2078]
[1736972495861,3.2078,3475.5,3475.3,0.57528]
[1736972496064,3.2078,3476.0,3475.4,3.2078]
[1736972496370,4.1746,3476.4,3475.6,0.57522]
[1736972496661,0.57519,3475.9,3475.5,0.57524]
[1736972496868,0.57519,3475.9,3475.4,3.2078]
[1736972496869,0.57525,3475.5,3475.4,3.2078]
[1736972497069,2.71428763,3475.8,3475.0,3.2078]
[1736972497264,2.71428763,3475.4,3474.6,3.2078]
[1736972497569,0.57536,3474.9,3474.6,3.2078]
[1736972497768,5.92208763,3475.4,3474.6,3.2078]
[1736972498365,0.57538,3474.8,3474.6,3.2078]
[1736972498566,5.92208763,3475.4,3474.6,3.2078]
[1736972498567,0.5753,3475.2,3474.6,3.2078]
[1736972498865,0.57538,3474.7,3474.6,3.2078]
[1736972499169,0.9856,3475.3,3474.6,3.2078]
[1736972499367,0.9856,3475.3,3474.5,0.9776]
[1736972499567,0.57537,3474.8,3474.1,3.2078]
[1736972499766,0.57545,3474.4,3474.1,3.2078]
[1736972499966,4.15264763,3475.0,3474.1,3.2078]
[1736972500171,3.2078,3474.7,3474.1,3.2078]
[1736972500372,0.57545,3474.4,3474.1,3.2078]
[1736972500562,0.57542,3474.5,3474.1,3.78328]
[1736972500764,0.57542,3474.5,3474.1,3.2078]
[1736972500964,3.2078,3474.9,3474.1,3.2078]
[1736972501162,0.57544,3474.4,3474.1,3.2078]
[1736972501670,0.57547,3474.2,3474.1,3.2078]
[1736972502970,0.57555,3473.7,3473.6,3.2078]
[1736972503271,1.43871,3474.1,3473.1,3.2078]
[1736972503272,2.71428763,3473.8,3473.1,3.2078]
[1736972503468,0.57562,3473.3,3473.2,40.8]
[1736972503668,0.57561,3473.4,3473.2,40.8]
[1736972503865,2.71428763,3473.8,3473.2,40.8]
[1736972504078,0.57563,3473.2,3473.1,3.2078]
[1736972504477,2.71428763,3473.8,3473.1,3.2078]
[1736972504775,2.71428763,3473.8,3473.1,3.78344]
[1736972504776,0.57562,3473.3,3473.1,3.78344]
[1736972505173,0.57559,3473.5,3473.2,0.57562]
[1736972505376,2.71428763,3473.8,3473.1,3.2078]
[1736972505569,0.57561,3473.4,3473.1,3.78343]
[1736972505769,0.57561,3473.4,3473.2,0.57563]
[1736972506077,0.57561,3473.4,3473.1,3.2078]
[1736972506277,0.5756,3473.5,3473.2,0.57562]
[1736972506472,2.71428763,3473.8,3473.3,0.5756]
[1736972506679,0.9952,3474.0,3473.5,3.2078]
[1736972507071,0.57553,3473.8,3473.6,0.57556]
[1736972507474,0.57551,3473.9,3473.6,0.57556]
[1736972507676,2.71428763,3474.5,3473.5,3.2078]
[1736972507979,0.5755,3474.0,3473.9,3.2078]
[1736972508367,1.8592,3474.8,3473.6,0.9813]
[1736972508368,5.92208763,3474.1,3473.6,0.9813]
[1736972508581,0.57555,3473.7,3473.6,0.9813]
[1736972509174,5.92208763,3474.1,3473.2,3.2078]
[1736972509373,0.57556,3473.7,3473.2,3.2078]
[1736972509573,0.57554,3473.8,3473.6,0.57556]
[1736972509772,0.57555,3473.7,3473.5,0.57557]
[1736972509973,0.57555,3473.7,3473.5,0.57558]
[1736972510173,0.57555,3473.7,3473.2,3.2078]
[1736972510378,0.9378,3474.0,3473.2,3.2078]
[1736972510580,0.57549,3474.1,3473.9,0.57551]
[1736972510775,3.2078,3474.6,3473.9,0.5755]
[1736972510986,0.57549,3474.1,3473.9,0.5755]
[1736972511187,0.57547,3474.2,3473.7,3.2078]
[1736972511386,3.2078,3474.6,3473.9,0.57551]
[1736972511686,0.57551,3474.0,3473.8,0.57553]
[1736972512188,0.57551,3474.0,3473.9,0.57551]
[1736972512981,3.2078,3474.6,3473.9,0.57551]
[1736972512982,3.2078,3474.6,3473.9,0.08996549]
[1736972513181,0.57548,3474.2,3474.1,3.2078]
[1736972514487,3.2078,3474.6,3474.1,3.2078]
[1736972514687,0.57547,3474.2,3474.1,3.78327]
[1736972514893,0.57547,3474.2,3474.1,3.2078]
[1736972515784,0.9388,3474.5,3473.8,0.57552]
[1736972515785,0.57551,3474.0,3473.8,0.57552]
[1736972516184,1.43875,3474.0,3473.3,3.2078]
[1736972516388,2.71428763,3473.4,3473.0,0.9659]
[1736972516583,2.71428763,3473.4,3472.9,3.2078]
[1736972516889,0.57566,3473.0,3472.9,3.2078]
[1736972519282,0.57566,3473.0,3472.9,3.78348]
[1736972519479,0.57566,3473.0,3472.9,3.2078]
[1736972520187,0.57566,3473.0,3472.9,3.78348]
[1736972520385,0.9388,3473.3,3472.9,3.2078]
[1736972521186,0.9388,3473.3,3473.1,0.57564]
[1736972521386,0.57565,3473.1,3472.9,3.2078]
[1736972521581,0.9388,3473.3,3472.9,3.2078]
[1736972521787,0.57566,3473.0,3472.9,3.2078]
[1736972523990,5.92208763,3474.2,3472.9,3.2078]
[1736972524296,0.57870358,3474.1,3473.9,0.5755]
[1736972524496,0.00321358,3474.1,3473.4,1.439]
[1736972524795,0.00321358,3474.1,3474.0,0.5755]
[1736972526793,0.00321358,3474.1,3473.5,40.8]
[1736972526990,1.43888,3473.7,3473.1,0.9592]
[1736972527290,1.43888,3473.7,3472.8,3.2078]
[1736972527291,5.92208763,3473.4,3472.8,3.2078]
[1736972527499,0.9689,3473.3,3472.8,3.2078]
[1736972527989,0.57568,3472.9,3472.8,3.2078]
[1736972528186,0.9689,3473.3,3472.8,3.2078]
[1736972528486,0.57567,3473.0,3472.8,3.78348]
[1736972528686,0.57568,3472.9,3472.8,3.2078]
[1736972529293,0.57567,3473.0,3472.8,3.2078]
[1736972529486,0.9689,3473.3,3472.8,3.2078]
[1736972529694,0.57565,3473.1,3472.8,3.78348]
[1736972530400,0.57565,3473.1,3472.9,0.57567]
[1736972530596,0.9689,3473.3,3473.0,0.57565]
[1736972530799,0.9245,3474.0,3473.2,3.2078]
[1736972531304,0.57569,3472.9,3472.7,3.2078]
[1736972531495,2.71428763,3473.3,3472.7,3.2078]
[1736972531694,0.5757,3472.8,3472.7,3.2078]
[1736972531902,2.71428763,3473.3,3472.3,1.53497]
[1736972531903,1.43922,3472.9,3472.3,1.53497]
[1736972532106,4.64693,3473.1,3472.3,0.9592]
[1736972532402,4.64693,3473.1,3471.8,4.64743]
[1736972532403,0.5758,3472.2,3472.1,40.8]
[1736972532598,0.5758,3472.2,3471.8,3.2078]
[1736972532599,0.57585,3471.9,3471.8,3.2078]
[1736972532799,4.15369763,3472.5,3471.7,0.9373]
[1736972532995,3.2078,3472.2,3471.5,40.81035]
[1736972533202,0.5759,3471.6,3471.5,0.01035]
[1736972533806,0.57588,3471.7,3471.5,0.01035]
[1736972534107,0.5759,3471.6,3471.5,0.01035]
[1736972534295,4.1249,3472.4,3471.7,0.57587]
[1736972534502,4.1249,3472.4,3471.5,0.01035]
[1736972534708,0.57583,3472.0,3471.7,0.57587]
[1736972534908,0.57582,3472.1,3471.6,0.5759]
[1736972535208,0.57584,3472.0,3471.7,0.57587]
[1736972535411,0.9171,3472.4,3471.7,3.2078]
[1736972535704,0.57578,3472.3,3472.0,0.57582]
[1736972536000,0.9171,3472.4,3471.5,0.01035]
[1736972536206,0.57588,3471.8,3471.5,0.01035]
[1736972536514,0.9171,3472.4,3471.7,3.2078]
[1736972536809,0.57583,3472.0,3471.7,3.78367]
[1736972537111,0.9171,3472.4,3471.7,3.2078]
[1736972537112,3.2078,3472.2,3471.7,3.2078]
[1736972537309,0.57586,3471.8,3471.7,3.2078]
[1736972538002,0.57589,3471.7,3471.3,3.2078]
[1736972538203,0.5759,3471.6,3471.3,3.78374]
[1736972538503,0.57586,3471.9,3471.6,0.57589]
[1736972539298,3.2078,3472.2,3471.3,3.2078]
[1736972539499,0.57583,3472.0,3471.7,0.57587]
[1736972539708,0.57582,3472.1,3471.8,0.57586]
[1736972539904,2.71428763,3472.1,3471.4,40.8]
[1736972540206,0.57589,3471.7,3471.4,41.37592]
[1736972540801,0.5759,3471.6,3471.4,41.37592]
[1736972541001,0.57591,3471.5,3471.4,40.8]
[1736972541208,2.71428763,3472.1,3471.3,3.2078]
[1736972541505,3.2078,3472.2,3471.3,3.2078]
[1736972541702,0.57581,3472.1,3471.6,0.57588]
[1736972541912,0.57583,3472.0,3471.6,0.57588]
[1736972542206,0.57583,3472.0,3471.7,0.57588]
[1736972542399,3.2078,3472.2,3471.4,40.8]
[1736972542600,0.57583,3472.1,3471.8,0.57586]
[1736972542906,3.2078,3472.2,3471.7,3.2078]
[1736972543101,3.2078,3472.2,3472.0,0.57583]
[1736972543308,3.2078,3472.2,3471.8,0.57586]
[1736972543607,3.2078,3472.2,3472.0,0.57582]
[1736972543809,1.269,3472.6,3471.7,3.2078]
[1736972543810,3.2078,3473.0,3472.1,3.2078]
[1736972544007,5.92208763,3473.6,3473.0,0.57566]
[1736972544302,3.2078,3473.6,3472.5,3.2078]
[1736972544502,3.2078,3473.6,3472.9,3.2078]
[1736972544710,3.2078,3473.6,3473.3,0.5756]
[1736972544902,3.2078,3473.6,3472.9,3.2078]
[1736972545097,3.2078,3473.6,3473.5,0.57558]
[1736972545708,1.807,3474.0,3473.5,3.2078]
[1736972545906,1.807,3474.0,3473.8,0.57552]
[1736972546611,2.3825,3474.0,3473.7,0.57554]
[1736972546812,2.3825,3474.0,3473.8,0.57553]
[1736972547107,0.00321358,3474.1,3474.0,0.5755]
[1736972547608,0.00321358,3474.1,3473.5,3.2078]
[1736972547810,0.00321358,3474.1,3474.0,0.5755]
[1736972548013,0.00321358,3474.1,3473.5,3.2078]
[1736972548906,0.57870358,3474.1,3473.8,0.57552]
[1736972549210,0.00321358,3474.1,3473.9,0.57551]
[1736972549507,0.00321358,3474.1,3474.0,0.5755]
[1736972550506,3.2078,3475.3,3474.6,0.5754]
[1736972550805,3.2078,3475.3,3474.8,0.57536]
[1736972551002,3.2078,3475.3,3474.4,3.2078]
[1736972551003,0.5753,3475.2,3474.4,3.2078]
[1736972551210,3.78309,3475.3,3474.4,3.2078]
[1736972551409,3.78309,3475.3,3474.9,0.57534]
[1736972551703,0.57531,3475.2,3474.8,0.57536]
[1736972551907,3.2078,3475.3,3474.9,40.8]
[1736972552307,2.71428763,3475.4,3474.9,40.8]
[1736972552606,0.57541,3474.6,3474.3,3.2078]
[1736972552805,2.71428763,3475.0,3474.3,3.2078]
[1736972553111,0.57537,3474.8,3474.4,0.57542]
[1736972553305,0.8674,3474.9,3474.3,3.2078]
[1736972553711,2.71428763,3474.8,3474.3,3.2078]
[1736972553905,0.57543,3474.4,3474.3,3.2078]
[1736972554309,0.57542,3474.5,3474.3,3.2078]
[1736972554505,0.57543,3474.4,3474.3,3.2078]
[1736972556809,0.57544,3474.4,3474.0,0.5755]
[1736972557117,0.57545,3474.3,3473.9,0.57551]
[1736972558111,3.2078,3474.7,3473.8,3.2078]
[1736972558320,0.5754,3474.7,3474.3,0.57544]
[1736972558504,4.0752,3474.9,3474.3,0.57544]
[1736972558704,4.0752,3474.9,3473.8,3.2078]
[1736972558907,0.8682,3475.3,3474.2,3.2078]
[1736972559121,0.5753,3475.2,3474.9,0.57534]
[1736972559318,2.71428763,3475.6,3474.7,41.7282]
[1736972559518,0.57533,3475.0,3474.7,42.30357]
[1736972559719,0.57536,3474.9,3474.7,40.8]
[1736972559920,0.57537,3474.8,3474.7,40.8]
[1736972560216,0.5753,3475.2,3474.6,3.2078]
[1736972560413,0.57538,3474.7,3474.6,3.2078]
[1736972561709,2.71428763,3474.8,3473.8,3.2078]
[1736972561910,0.57548,3474.2,3473.8,3.78332]
[1736972562113,0.57546,3474.3,3474.0,0.5755]
[1736972562613,0.57547,3474.2,3473.9,0.57551]
[1736972563015,0.57548,3474.1,3473.8,3.78332]
[1736972563217,2.71428763,3474.0,3473.0,3.2078]
[1736972563410,2.71428763,3474.0,3473.2,0.57563]
[1736972563411,0.57559,3473.5,3473.2,0.57563]
[1736972563818,0.57561,3473.4,3473.1,0.57564]
[1736972564020,5.92208763,3473.6,3472.7,40.8]
[1736972564220,0.57561,3473.4,3473.1,0.57564]
[1736972564434,3.2078,3473.6,3472.7,40.8]
[1736972564733,3.2078,3473.6,3473.1,0.57565]
[1736972564933,0.57561,3473.4,3473.1,0.57565]
[1736972565134,0.57562,3473.3,3473.1,0.57565]
[1736972565434,3.2078,3473.6,3473.1,0.57564]
[1736972565636,0.57562,3473.3,3473.0,0.57566]
[1736972566034,0.57563,3473.2,3473.0,0.57566]
[1736972566624,0.57566,3473.1,3472.7,40.8]
[1736972566833,0.57564,3473.2,3473.0,0.57566]
[1736972567433,0.57561,3473.3,3473.2,0.01204]
[1736972567639,0.57571,3472.7,3472.6,3.2078]
[1736972567834,1.43918,3473.0,3472.2,3.2078]
[1736972567835,0.57576,3472.5,3472.2,3.2078]
[1736972568035,5.92208763,3473.4,3472.2,44.0078]
[1736972568340,0.57563,3473.2,3473.0,0.57566]
[1736972568734,2.71428763,3473.5,3473.0,0.57566]
[1736972568735,0.57562,3473.3,3473.0,0.57566]
[1736972569630,2.71428763,3473.5,3473.0,0.57566]
[1736972569835,2.71428763,3473.5,3472.8,0.8737]
[1736972570033,0.57562,3473.3,3473.0,0.57566]
[1736972570731,0.57563,3473.2,3473.0,0.57566]
[1736972570932,2.71428763,3473.5,3472.9,0.57567]
[1736972570933,0.57562,3473.3,3472.9,0.57567]
[1736972571132,0.57562,3473.3,3473.0,0.57566]
[1736972571341,0.57564,3473.2,3472.9,0.57567]
[1736972571540,2.71428763,3473.5,3472.8,1.4494]
[1736972571740,2.71428763,3473.5,3472.8,0.8737]
[1736972571933,2.71428763,3473.1,3472.2,44.0078]
[1736972572136,3.2078,3472.9,3472.2,40.8]
[1736972572338,0.57578,3472.3,3472.2,40.8]
[1736972572945,0.5758,3472.2,3471.9,0.57585]
[1736972573338,0.57582,3472.1,3471.8,44.58365]
[1736972573540,0.57584,3472.0,3471.8,44.0078]
[1736972573842,0.57584,3472.0,3471.8,3.2078]
[1736972574045,2.32773,3472.6,3471.8,3.2078]
[1736972574347,0.57582,3472.1,3471.8,3.2078]
[1736972574640,0.57582,3472.1,3471.8,3.78365]
[1736972575041,0.5758,3472.2,3471.9,0.57584]
[1736972575242,5.92208763,3472.7,3471.8,3.2078]
[1736972575440,0.57577,3472.4,3471.8,3.2078]
[1736972575639,0.57577,3472.4,3472.2,0.57579]
[1736972575939,0.57576,3472.5,3472.2,0.57579]
[1736972576144,5.92208763,3472.7,3472.2,0.57579]
[1736972576535,5.92208763,3472.7,3471.8,3.2078]
[1736972576745,0.57577,3472.4,3471.8,3.2078]
[1736972577444,5.92208763,3472.7,3471.9,0.57584]
[1736972577645,7.36141763,3472.7,3471.9,0.57584]
[1736972577843,0.57582,3472.1,3471.9,0.57584]
[1736972578045,5.92208763,3472.7,3471.8,3.2078]
[1736972578439,0.57585,3471.9,3471.8,3.2078]
[1736972578843,0.57585,3471.9,3471.7,0.57587]
[1736972579244,0.57586,3471.8,3471.7,0.57587]
[1736972579444,0.5759,3471.6,3471.5,41.3759]
[1736972579644,1.43954,3472.1,3471.6,0.57589]
[1736972579850,7.36155763,3472.3,3471.7,0.57588]
[1736972579851,0.57588,3471.8,3471.7,0.57588]
[1736972580251,7.36155763,3472.3,3471.5,40.8]
[1736972580643,0.57587,3471.8,3471.7,0.57586]
[1736972581251,0.57591,3471.6,3471.5,0.5759]
[1736972581645,0.57591,3471.5,3471.4,4.70562]
[1736972582052,0.57591,3471.5,3471.4,4.1297]
[1736972582248,0.57591,3471.5,3471.4,4.70563]
[1736972582554,2.71428763,3471.9,3471.4,4.1297]
[1736972582852,0.57589,3471.7,3471.6,0.57589]
[1736972583249,0.57589,3471.7,3471.4,4.1297]
[1736972583650,0.57589,3471.7,3471.6,0.5759]
[1736972583848,2.71428763,3471.9,3471.4,4.1297]
[1736972584051,0.57589,3471.7,3471.4,4.1297]
[1736972584251,2.71428763,3471.9,3471.6,0.5759]
[1736972584544,0.57587,3471.8,3471.6,0.5759]
[1736972584750,0.57588,3471.7,3471.5,0.5759]
[1736972584945,0.57587,3471.8,3471.6,0.5759]
[1736972585351,0.57587,3471.8,3471.4,4.1297]
[1736972585352,5.92208763,3472.3,3471.4,4.1297]
[1736972585554,0.57586,3471.9,3471.6,0.57588]
[1736972585749,2.71428763,3471.9,3471.4,4.1297]
[1736972585950,2.71428763,3471.5,3471.1,40.8]
[1736972586153,2.71428763,3471.5,3471.2,0.57595]
[1736972586455,0.9369,3471.8,3471.1,1.43996]
[1736972586655,0.57589,3471.7,3471.5,0.57591]
[1736972586851,0.9369,3471.8,3471.0,4.0785]
[1736972587153,0.57589,3471.7,3471.5,0.5759]
[1736972587549,0.57589,3471.7,3471.5,0.57591]
[1736972589157,0.57592,3471.5,3471.0,4.0785]
[1736972589456,2.2662122,3471.7,3471.0,4.0785]
[1736972589646,2.2662122,3471.7,3471.0,3.2078]
[1736972590052,0.57594,3471.4,3471.2,0.57595]
[1736972590252,2.2662122,3471.7,3471.1,0.57598]
[1736972590253,0.57593,3471.5,3471.1,0.57598]
[1736972590554,0.57593,3471.4,3471.3,0.57593]
[1736972590752,2.2662122,3471.7,3471.0,3.2078]
[1736972590950,0.5759,3471.6,3471.0,3.2078]
[1736972591153,2.2662122,3471.7,3471.0,3.2078]
[1736972591355,2.2662122,3471.4,3471.0,3.2078]